fUST/lending_fUST_20250722
["ID","MTS","AMOUNT","RATE_DAILY","PERIOD"]
[374027824,1753187446074,-462.60895151,0.00017577,2]
[374027826,1753187446084,-471.20609912,0.00017577,2]
[374027828,1753187446094,-460.0,0.00017577,2]
[374027830,1753187446103,-460.0,0.00017577,2]
[374027832,1753187446113,-460.0,0.00017577,2]
[374027834,1753187446122,-460.0,0.00017577,2]
[374027836,1753187446131,-460.0,0.00017577,2]
[374027838,1753187446142,-463.25321709,0.00017577,2]
[374027840,1753187446151,-460.0,0.00017577,2]
[374027842,1753187446161,-462.9715992,0.00017577,2]
[374027844,1753187446170,-460.0,0.00017577,2]
[374027846,1753187446179,-460.0,0.00017577,2]
[374027848,1753187446189,-460.0,0.00017577,2]
[374027851,1753187446198,-460.0,0.00017577,2]
[374027853,1753187446207,-460.0,0.00017577,2]
[374027855,1753187446217,-460.0,0.00017577,2]
[374027857,1753187446226,-460.0,0.00017577,2]
[374027859,1753187446235,-460.0,0.00017577,2]
[374027861,1753187446245,-460.0,0.00017577,2]
[374027863,1753187446254,-462.21027629,0.00017577,2]
[374027865,1753187446263,-462.06309785,0.00017577,2]
[374027867,1753187446272,-460.0,0.00017577,2]
[374027869,1753187446282,-460.0,0.00017577,2]
[374027871,1753187446292,-460.0,0.00017577,2]
[374027873,1753187446302,-14098.81,0.00017577,2]
[374027875,1753187446311,-461.0128182,0.00017577,2]
[374027877,1753187446320,-604.80719875,0.00017577,2]
[374027879,1753187446329,-460.0,0.00017577,2]
[374027881,1753187446339,-849.21,0.00017577,2]
[374027883,1753187446348,-460.0,0.00017577,2]
[374027885,1753187446357,-460.0,0.00017577,2]
[374027887,1753187446367,-460.0,0.00017577,2]
[374027889,1753187446376,-460.0,0.00017577,2]
[374027892,1753187446387,-1393.93,0.00017577,2]
[374027894,1753187446396,-571.95041442,0.0001774,2]
[374027896,1753187446405,-503.14242823,0.0001779,2]
[374027898,1753187446415,-500.0,0.0001779,2]
[374027900,1753187446424,-522.05909438,0.0001779,2]
[374027902,1753187446433,-460.0,0.00017846,2]
[374027904,1753187446442,-460.0,0.00017847,2]
[374027906,1753187446451,-494.21,0.00017847,2]
[374027908,1753187446460,-460.0,0.00017847,2]
[374027910,1753187446469,-533.63,0.00017847,2]
[374027912,1753187446478,-460.0,0.00017847,2]
[374027914,1753187446487,-460.0,0.00017847,2]
[374027916,1753187446497,-1368.29,0.00017847,2]
[374027918,1753187446506,-460.0,0.00017847,2]
[374027920,1753187446515,-460.0,0.00017847,2]
[374027922,1753187446525,-460.0,0.00017847,2]
[374027924,1753187446534,-601.82,0.00017847,2]
[374027926,1753187446543,-460.0,0.00017847,2]
[374027927,1753187446552,-511.68,0.00017847,2]
[374027930,1753187446561,-460.0,0.00017848,2]
[374027932,1753187446571,-460.0,0.00017848,2]
[374027933,1753187446580,-460.0,0.00017848,2]
[374027935,1753187446590,-460.0,0.00017848,2]
[374027937,1753187446600,-460.0,0.00017848,2]
[374027940,1753187446610,-460.0,0.00017848,2]
[374027942,1753187446619,-460.0,0.00017848,2]
[374027943,1753187446628,-460.0,0.00017848,2]
[374027946,1753187446640,-460.0,0.00017848,2]
[374027948,1753187446655,-460.0,0.00017848,2]
[374027950,1753187446664,-460.0,0.00017848,2]
[374027952,1753187446674,-460.0,0.00017848,2]
[374027954,1753187446685,-185.14,0.00017848,2]
[374027956,1753187446694,-460.0,0.00017848,2]
[374027958,1753187446703,-460.0,0.00017849,2]
[374027960,1753187446713,-460.0,0.00017849,2]
[374027962,1753187446723,-460.0,0.00017849,2]
[374027963,1753187446733,-460.0,0.00017849,2]
[374027966,1753187446746,-460.0,0.00017849,2]
[374027967,1753187446755,-1291.58,0.00017849,2]
[374027969,1753187446765,-1042.81,0.00017849,2]
[374027971,1753187446775,-460.0,0.00017849,2]
[374027973,1753187446787,-460.0,0.00017849,2]
[374027976,1753187446796,-460.0,0.00017849,2]
[374027978,1753187446806,-460.0,0.00017849,2]
[374027980,1753187446815,-460.0,0.00017849,2]
[374027982,1753187446824,-460.0,0.0001785,2]
[374027984,1753187446834,-460.0,0.00017851,2]
[374027986,1753187446843,-587.05899473,0.00017851,2]
[374027988,1753187446852,-462.35587766,0.00017851,2]
[374027990,1753187446862,-401.90180984,0.00017851,2]
[374027992,1753187446871,-460.0,0.00017851,2]
[374027994,1753187446881,-460.0,0.00017851,2]
[374027996,1753187446890,-460.0,0.00017851,2]
[374027998,1753187446899,-463.34187825,0.00017851,2]
[374028000,1753187446909,-460.0,0.00017851,2]
[374028002,1753187446918,-460.0,0.00017851,2]
[374028004,1753187446928,-460.0,0.00017851,2]
[374028006,1753187446937,-462.41123529,0.00017851,2]
[374028008,1753187446947,-460.0,0.00017851,2]
[374028010,1753187446957,-405.19246,0.00017851,2]
[374028012,1753187446966,-460.0,0.00017851,2]
[374028014,1753187446976,-460.0,0.00017851,2]
[374028016,1753187446985,-202.66813334,0.00017851,2]
[374028018,1753187446995,-460.0,0.00017851,2]
[374028020,1753187447005,-460.0,0.00017851,2]
[374028022,1753187447014,-460.0,0.00017851,2]
[374028024,1753187447023,-460.0,0.00017851,2]
[374028026,1753187447033,-14098.81,0.00017851,2]
[374028028,1753187447043,-460.0,0.00017851,2]
[374028030,1753187447052,-849.21,0.00017851,2]
[374028032,1753187447061,-460.0,0.00017851,2]
[374028034,1753187447070,-500.0,0.00017851,2]
[374028036,1753187447080,-460.0,0.00017851,2]
[374028038,1753187447090,-460.0,0.00017851,2]
[374028040,1753187447101,-460.0,0.00017851,2]
[374028042,1753187447110,-1393.93,0.00017851,2]
[374028044,1753187447120,-14888.69708495,0.00018,2]
[374028046,1753187447130,-5931.99897974,0.00018,2]
[374028048,1753187447139,-278.02060332,0.00018121,2]
[374028050,1753187447149,-1000.0,0.00018121,2]
[374028052,1753187447158,-1000.0,0.00018121,2]
[374028054,1753187447168,-1000.0,0.00018121,2]
[374028056,1753187447177,-500.0,0.00018121,2]
[374028058,1753187447187,-1000.0,0.00018121,2]
[374028060,1753187447198,-494.21,0.00018121,2]
[374028063,1753187447207,-533.63,0.00018121,2]
[374028065,1753187447217,-258.97464754,0.00018121,2]
[374028067,1753187447227,-460.0,0.00018121,2]
[374028068,1753187447237,-524.13,0.00018121,2]
[374028069,1753187447246,-1368.29,0.00018121,2]
[374028070,1753187447255,-460.0,0.00018121,2]
[374028071,1753187447264,-460.0,0.00018121,2]
[374028072,1753187447273,-460.0,0.00018121,2]
[374028073,1753187447283,-511.68,0.00018121,2]
[374028074,1753187447295,-360.73,0.00018122,2]
[374028075,1753187447305,-460.0,0.00018122,2]
[374028076,1753187447315,-460.0,0.00018122,2]
[374028077,1753187447325,-460.0,0.00018122,2]
[374028078,1753187447335,-460.0,0.00018122,2]
[374028079,1753187447345,-460.0,0.00018122,2]
[374028080,1753187447354,-460.0,0.00018122,2]
[374028081,1753187447364,-460.0,0.00018122,2]
[374028082,1753187447373,-460.0,0.00018122,2]
[374028083,1753187447382,-460.0,0.00018122,2]
[374028084,1753187447391,-460.0,0.00018122,2]
[374028085,1753187447400,-460.0,0.00018122,2]
[374028086,1753187447410,-460.0,0.00018122,2]
[374028087,1753187447419,-460.0,0.00018123,2]
[374028088,1753187447428,-460.0,0.00018123,2]
[374028089,1753187447437,-460.0,0.00018123,2]
[374028090,1753187447446,-460.0,0.00018123,2]
[374028091,1753187447455,-1291.58,0.00018123,2]
[374028093,1753187447464,-1042.81,0.00018123,2]
[374028095,1753187447473,-460.0,0.00018123,2]
[374028097,1753187447482,-460.0,0.00018123,2]
[374028098,1753187447492,-460.0,0.00018123,2]
[374028101,1753187447502,-460.0,0.00018123,2]
[374028103,1753187447511,-460.0,0.00018124,2]
[374028105,1753187447520,-460.0,0.00018125,2]
[374028107,1753187447530,-460.0,0.00018125,2]
[374028109,1753187447539,-460.0,0.00018125,2]
[374028111,1753187447551,-460.0,0.00018125,2]
[374028113,1753187447560,-460.0,0.00018125,2]
[374028115,1753187447569,-460.0,0.00018125,2]
[374028117,1753187447578,-14098.81,0.00018125,2]
[374028119,1753187447588,-460.0,0.00018125,2]
[374028121,1753187447597,-849.21,0.00018125,2]
[374028123,1753187447607,-460.0,0.00018125,2]
[374028124,1753187447617,-460.0,0.00018125,2]
[374028126,1753187447626,-460.0,0.00018125,2]
[374028128,1753187447640,-460.0,0.00018125,2]
[374028130,1753187447651,-1393.93,0.00018125,2]
[374028132,1753187447660,-160.0,0.00018175,2]
[374028134,1753187447669,-177.0,0.00018247,3]
[374028136,1753187447679,-2667.02,0.00018386,3]
[374028138,1753187447688,-1333.52,0.00018386,3]
[374028140,1753187447697,-666.76,0.00018386,3]
[374028142,1753187447706,-333.38,0.00018386,3]
[374028144,1753187447717,-494.21,0.00018395,2]
[374028146,1753187447727,-533.63,0.00018395,2]
[374028148,1753187447736,-460.0,0.00018395,2]
[374028150,1753187447745,-1368.29,0.00018395,2]
[374028152,1753187447754,-460.0,0.00018395,2]
[374028154,1753187447764,-460.0,0.00018395,2]
[374028156,1753187447773,-460.0,0.00018395,2]
[374028158,1753187447784,-511.68,0.00018395,2]
[374028160,1753187447794,-543.09,0.00018396,2]
[374028162,1753187447803,-239.6,0.00018396,2]
[374028164,1753187447813,-460.0,0.00018396,2]
[374028166,1753187447822,-460.0,0.00018396,2]
[374028168,1753187447831,-460.0,0.00018396,2]
[374028170,1753187447840,-460.0,0.00018396,2]
[374028172,1753187447850,-460.0,0.00018396,2]
[374028174,1753187447860,-460.0,0.00018396,2]
[374028176,1753187447869,-460.0,0.00018396,2]
[374028178,1753187447878,-460.0,0.00018396,2]
[374028180,1753187447888,-460.0,0.00018396,2]
[374028182,1753187447898,-455.98904119,0.00018396,2]
[374028184,1753187447908,-460.0,0.00018397,2]
[374028186,1753187447918,-460.0,0.00018397,2]
[374028188,1753187447927,-460.0,0.00018397,2]
[374028190,1753187447937,-330.93105098,0.00018397,2]
[374028192,1753187447946,-1291.58,0.00018397,2]
[374028194,1753187447956,-500.0,0.00018397,2]
[374028196,1753187447965,-1042.81,0.00018397,2]
[374028198,1753187447974,-460.0,0.00018397,2]
[374028200,1753187447984,-460.0,0.00018397,2]
[374028202,1753187447993,-460.0,0.00018397,2]
[374028204,1753187448003,-460.0,0.00018398,2]
[374028206,1753187448012,-460.0,0.00018399,2]
[374028208,1753187448022,-460.0,0.00018399,2]
[374028210,1753187448032,-460.0,0.00018399,2]
[374028212,1753187448042,-14098.81,0.00018399,2]
[374028214,1753187448052,-460.0,0.00018399,2]
[374028216,1753187448062,-849.21,0.00018399,2]
[374028218,1753187448073,-460.0,0.00018399,2]
[374028220,1753187448082,-460.0,0.00018399,2]
[374028222,1753187448092,-460.0,0.00018399,2]
[374028224,1753187448102,-460.0,0.00018399,2]
[374028226,1753187448112,-1393.93,0.00018399,2]
[374028228,1753187448121,-44742.72566233,0.000185,2]
[374028230,1753187448131,-280.0,0.00018592,2]
[374028232,1753187448140,-548.56607355,0.00018668,2]
[374028234,1753187448150,-1500.0,0.00018668,2]
[374028236,1753187448159,-494.21,0.00018669,2]
[374028238,1753187448169,-533.63,0.00018669,2]
[374028240,1753187448179,-460.0,0.00018669,2]
[374028242,1753187448188,-1368.29,0.00018669,2]
[374028244,1753187448198,-460.0,0.00018669,2]
[374028246,1753187448207,-460.0,0.00018669,2]
[374028248,1753187448217,-460.0,0.00018669,2]
[374028250,1753187448227,-511.68,0.00018669,2]
[374028252,1753187448237,-282.63378705,0.0001867,2]
[374028254,1753187448247,-592.56,0.0001867,2]
[374028256,1753187448257,-460.0,0.0001867,2]
[374028258,1753187448267,-460.0,0.0001867,2]
[374028260,1753187448276,-212.33,0.0001867,2]
[374028262,1753187448285,-460.0,0.0001867,2]
[374028264,1753187448296,-460.0,0.0001867,2]
[374028266,1753187448306,-460.0,0.0001867,2]
[374028268,1753187448316,-460.0,0.0001867,2]
[374028280,1753187448422,-460.0,0.00018671,2]
[374028282,1753187448433,-318.6,0.00018671,2]
[374028284,1753187448442,-1291.58,0.00018671,2]
[374028286,1753187448451,-1042.81,0.00018671,2]
[374028288,1753187448461,-460.0,0.00018671,2]
[374028290,1753187448470,-460.0,0.00018671,2]
[374028292,1753187448479,-460.0,0.00018671,2]
[374028294,1753187448489,-500.0,0.00018672,2]
[374028296,1753187448499,-460.0,0.00018672,2]
[374028299,1753187448509,-460.0,0.00018673,2]
[374028301,1753187448520,-460.0,0.00018673,2]
[374028303,1753187448529,-14098.81,0.00018673,2]
[374028304,1753187448539,-460.0,0.00018673,2]
[374028306,1753187448551,-849.21,0.00018673,2]
[374028309,1753187448561,-460.0,0.00018673,2]
[374028310,1753187448570,-460.0,0.00018673,2]
[374028312,1753187448580,-460.0,0.00018673,2]
[374028315,1753187448590,-546.9,0.00018673,2]
[374028316,1753187448600,-1393.93,0.00018673,2]
[374028319,1753187448611,-1150.51810467,0.00018708,2]
[374028320,1753187448620,-400.0,0.00018723,2]
[374028323,1753187448630,-1421.01089699,0.000189,2]
[374028325,1753187448642,-1695.29332587,0.000189,2]
[374028326,1753187448652,-494.21,0.00018943,2]
[374028328,1753187448662,-533.63,0.00018943,2]
[374028331,1753187448672,-460.0,0.00018943,2]
[374028333,1753187448682,-1368.29,0.00018943,2]
[374028335,1753187448693,-460.0,0.00018943,2]
[374028337,1753187448703,-460.0,0.00018943,2]
[374028338,1753187448712,-158.9,0.00018943,2]
[374028340,1753187448723,-511.68,0.00018943,2]
[374028342,1753187448734,-460.0,0.00018944,2]
[374028344,1753187448743,-587.18,0.00018944,2]
[374028347,1753187448753,-404.68,0.00018944,2]
[374028348,1753187448762,-460.0,0.00018944,2]
[374028350,1753187448771,-460.0,0.00018944,2]
[374028352,1753187448781,-1291.58,0.00018945,2]
[374028354,1753187448791,-1042.81,0.00018945,2]
[374028356,1753187448802,-460.0,0.00018945,2]
[374028358,1753187448812,-460.0,0.00018945,2]
[374028360,1753187448821,-460.0,0.00018945,2]
[374028362,1753187448831,-460.0,0.00018946,2]
[374028364,1753187448840,-157.12443675,0.00018947,2]
[374028366,1753187448849,-460.0,0.00018947,2]
[374028368,1753187448858,-14098.81,0.00018947,2]
[374028370,1753187448867,-460.0,0.00018947,2]
[374028372,1753187448877,-849.21,0.00018947,2]
[374028374,1753187448886,-460.0,0.00018947,2]
[374028376,1753187448895,-460.0,0.00018947,2]
[374028378,1753187448904,-460.0,0.00018947,2]
[374028380,1753187448913,-1393.93,0.00018947,2]
[374028382,1753187448923,-1330.93779917,0.00019,5]
[374028384,1753187448932,-18000.0,0.00019,2]
[374028386,1753187448942,-1695.29332585,0.00019141,2]
[374028388,1753187448951,-177.276587,0.00019178,2]
[374028390,1753187448960,-160.0,0.00019217,2]
[374028392,1753187448970,-160.0,0.00019217,2]
[374028394,1753187448979,-160.0,0.00019217,2]
[374028396,1753187448989,-526.07605158,0.00019217,2]
[374028398,1753187448999,-160.0,0.00019217,2]
[374028400,1753187449008,-476.60259688,0.00019217,2]
[374028402,1753187449018,-215.80012421,0.00019217,2]
[374028404,1753187449028,-12619.94447631,0.00019217,2]
[374028406,1753187449037,-214.6393183,0.00019217,2]
[374028408,1753187449046,-160.0,0.00019217,2]
[374028410,1753187449056,-231.06963584,0.00019217,2]
[374028412,1753187449065,-839.90542673,0.00019217,2]
[374028414,1753187449075,-160.0,0.00019217,2]
[374028416,1753187449085,-494.21,0.00019217,2]
[374028418,1753187449095,-533.63,0.00019217,2]
[374028420,1753187449104,-460.0,0.00019217,2]
[374028422,1753187449114,-1368.29,0.00019217,2]
[374028424,1753187449124,-460.0,0.00019217,2]
[374028426,1753187449133,-460.0,0.00019217,2]
[374028428,1753187449143,-511.68,0.00019217,2]
[374028430,1753187449152,-460.0,0.00019218,2]
[374028432,1753187449161,-460.0,0.00019218,2]
[374028434,1753187449170,-460.0,0.00019218,2]
[374028436,1753187449180,-1291.58,0.00019219,2]
[374028438,1753187449189,-1042.81,0.00019219,2]
[374028440,1753187449198,-460.0,0.00019219,2]
[374028442,1753187449208,-460.0,0.00019219,2]
[374028444,1753187449217,-460.0,0.00019219,2]
[374028445,1753187449227,-500.0,0.0001922,2]
[374028448,1753187449236,-460.0,0.0001922,2]
[374028449,1753187449245,-460.0,0.00019221,2]
[374028452,1753187449255,-14098.81,0.00019221,2]
[374028454,1753187449264,-460.0,0.00019221,2]
[374028456,1753187449274,-849.21,0.00019221,2]
[374028458,1753187449284,-460.0,0.00019221,2]
[374028460,1753187449293,-460.0,0.00019221,2]
[374028462,1753187449303,-460.0,0.00019221,2]
[374028464,1753187449314,-1393.93,0.00019221,2]
[374028466,1753187449323,-160.0,0.0001923,2]
[374028468,1753187449333,-500.0,0.00019316,2]
[374028470,1753187449342,-500.0,0.00019328,2]
[374028472,1753187449351,-500.0,0.00019328,2]
[374028474,1753187449360,-500.0,0.00019328,2]
[374028475,1753187449369,-308.82850684,0.00019328,2]
[374028477,1753187449378,-100000.0,0.00019329,2]
[374028479,1753187449387,-500.0,0.00019373,2]
[374028481,1753187449396,-500.0,0.00019373,2]
[374028483,1753187449405,-1695.29332585,0.00019383,2]
[374028485,1753187449414,-494.21,0.00019491,2]
[374028487,1753187449423,-533.63,0.00019491,2]
[374028489,1753187449432,-460.0,0.00019491,2]
[374028491,1753187449442,-1368.29,0.00019491,2]
[374028493,1753187449451,-326.87,0.00019491,2]
[374028495,1753187449460,-460.0,0.00019491,2]
[374028497,1753187449470,-511.68,0.00019491,2]
[374028499,1753187449479,-157.611,0.00019492,2]
[374028501,1753187449489,-460.0,0.00019492,2]
[374028503,1753187449498,-460.0,0.00019492,2]
[374028505,1753187449508,-275.78,0.00019492,2]
[374028507,1753187449516,-1291.58,0.00019493,2]
[374028509,1753187449526,-1042.81,0.00019493,2]
[374028511,1753187449535,-460.0,0.00019493,2]
[374028513,1753187449544,-460.0,0.00019493,2]
[374028515,1753187449554,-460.0,0.00019494,2]
[374028517,1753187449563,-460.0,0.00019495,2]
[374028519,1753187449573,-14098.81,0.00019495,2]
[374028521,1753187449582,-460.0,0.00019495,2]
[374028523,1753187449591,-849.21,0.00019495,2]
[374028525,1753187449601,-460.0,0.00019495,2]
[374028527,1753187449611,-460.0,0.00019495,2]
[374028529,1753187449620,-460.0,0.00019495,2]
[374028531,1753187449630,-1393.93,0.00019495,2]
[374028533,1753187449641,-1695.29332585,0.00019624,2]
[374028535,1753187449650,-3343.58847136,0.0001969,2]
[374028537,1753187449660,-494.21,0.00019765,2]
[374028539,1753187449669,-533.63,0.00019765,2]
[374028541,1753187449679,-460.0,0.00019765,2]
[374028543,1753187449688,-1368.29,0.00019765,2]
[374028545,1753187449697,-460.0,0.00019765,2]
[374028547,1753187449706,-511.68,0.00019765,2]
[374028549,1753187449716,-460.0,0.00019766,2]
[374028551,1753187449726,-263.77,0.00019766,2]
[374028552,1753187449735,-1291.58,0.00019767,2]
[374028554,1753187449744,-1042.81,0.00019767,2]
[374028556,1753187449753,-494.31,0.00019767,2]
[374028558,1753187449762,-460.0,0.00019767,2]
[374028560,1753187449772,-460.0,0.00019768,2]
[374028562,1753187449781,-460.0,0.00019769,2]
[374028564,1753187449790,-14098.81,0.00019769,2]
[374028566,1753187449799,-460.0,0.00019769,2]
[374028568,1753187449808,-849.21,0.00019769,2]
[374028569,1753187449817,-460.0,0.00019769,2]
[374028570,1753187449826,-460.0,0.00019769,2]
[374028571,1753187449835,-460.0,0.00019769,2]
[374028572,1753187449844,-1393.93,0.00019769,2]
[374028573,1753187449853,-1695.29332585,0.00019866,2]
[374028574,1753187449862,-392.58580708,0.00019921,2]
[374028575,1753187449871,-500.0,0.00019921,2]
[374028577,1753187449880,-173.634,0.0002,2]
[374028579,1753187449891,-35850.79696441,0.0002,2]
[374028581,1753187449899,-49151.51011566,0.0002,2]
[374028607,1753187450128,-460.0,0.00017024,2]
[374028609,1753187450141,-460.0,0.00017027,2]
[374028611,1753187450155,-23448.14476258,0.0002,2]
[374028612,1753187450164,-494.21,0.00020039,2]
[374028614,1753187450174,-533.63,0.00020039,2]
[374028617,1753187450184,-460.0,0.00020039,2]
[374028619,1753187450193,-1368.29,0.00020039,2]
[374028621,1753187450203,-460.0,0.00020039,2]
[374028623,1753187450213,-511.68,0.00020039,2]
[374028625,1753187450222,-460.0,0.0002004,2]
[374028627,1753187450231,-1291.58,0.00020041,2]
[374028629,1753187450241,-1042.81,0.00020041,2]
[374028631,1753187450250,-460.0,0.00020041,2]
[374028633,1753187450260,-500.0,0.00020042,2]
[374028635,1753187450269,-460.0,0.00020042,2]
[374028637,1753187450279,-460.0,0.00020043,2]
[374028639,1753187450288,-14098.81,0.00020043,2]
[374028641,1753187450298,-460.0,0.00020043,2]
[374028643,1753187450308,-849.21,0.00020043,2]
[374028645,1753187450317,-460.0,0.00020043,2]
[374028647,1753187450327,-460.0,0.00020043,2]
[374028649,1753187450336,-460.0,0.00020043,2]
[374028651,1753187450345,-1393.93,0.00020043,2]
[374028653,1753187450355,-1695.29332585,0.00020107,2]
[374028655,1753187450364,-500.0,0.00020111,2]
[374028657,1753187450373,-215.0738,0.00020204,2]
[374028659,1753187450383,-8180.76361645,0.00020204,2]
[374028661,1753187450392,-1150.51810467,0.00020215,2]
[374028663,1753187450402,-494.21,0.00020313,2]
[374028665,1753187450411,-533.63,0.00020313,2]
[374028667,1753187450420,-460.0,0.00020313,2]
[374028669,1753187450430,-1368.29,0.00020313,2]
[374028671,1753187450439,-460.0,0.00020313,2]
[374028673,1753187450448,-511.68,0.00020313,2]
[374028675,1753187450457,-460.0,0.00020314,2]
[374028677,1753187450467,-1291.58,0.00020315,2]
[374028679,1753187450476,-1042.81,0.00020315,2]
[374028690,1753187450574,-460.0,0.00020315,2]
[374028693,1753187450584,-460.0,0.00020316,2]
[374028695,1753187450594,-460.0,0.00020317,2]
[374028697,1753187450604,-14098.81,0.00020317,2]
[374028699,1753187450613,-439.8610288,0.00020317,2]
[374028701,1753187450622,-849.21,0.00020317,2]
[374028703,1753187450632,-460.0,0.00020317,2]
[374028705,1753187450644,-460.0,0.00020317,2]
[374028707,1753187450654,-460.0,0.00020317,2]
[374028709,1753187450664,-1393.93,0.00020317,2]
[374028711,1753187450673,-1695.29332585,0.00020348,3]
[374028713,1753187450683,-500.0,0.00020391,2]
[374028715,1753187450693,-500.0,0.00020391,2]
[374028717,1753187450702,-570.9949222,0.000204,2]
[374028719,1753187450712,-494.21,0.00020587,2]
[374028721,1753187450722,-533.63,0.00020587,2]
[374028723,1753187450732,-460.0,0.00020587,2]
[374028725,1753187450741,-1368.29,0.00020587,2]
[374028727,1753187450751,-460.0,0.00020587,2]
[374028729,1753187450760,-511.68,0.00020587,2]
[374028731,1753187450768,-460.0,0.00020588,2]
[374028733,1753187450777,-1291.58,0.00020589,2]
[374028735,1753187450787,-1042.81,0.00020589,2]
[374028737,1753187450796,-460.0,0.00020589,2]
[374028739,1753187450806,-1695.29332585,0.0002059,3]
[374028741,1753187450815,-460.0,0.0002059,2]
[374028743,1753187450824,-460.0,0.00020591,2]
[374028745,1753187450833,-14098.81,0.00020591,2]
[374028747,1753187450843,-849.21,0.00020591,2]
[374028749,1753187450852,-460.0,0.00020591,2]
[374028751,1753187450862,-194.24,0.00020591,2]
[374028753,1753187450871,-460.0,0.00020591,2]
[374028755,1753187450880,-1393.93,0.00020591,2]
[374028757,1753187450890,-1000.0,0.00020659,2]
[374028759,1753187450900,-12530.29911877,0.0002066,3]
[374028761,1753187450909,-669.979,0.00020735,2]
[374028763,1753187450919,-1695.29332585,0.00020831,4]
[374028765,1753187450928,-494.21,0.00020861,2]
[374028767,1753187450937,-533.63,0.00020861,2]
[374028769,1753187450947,-460.0,0.00020861,2]
[374028771,1753187450957,-1368.29,0.00020861,2]
[374028773,1753187450966,-460.0,0.00020861,2]
[374028775,1753187450975,-511.68,0.00020861,2]
[374028777,1753187450985,-460.0,0.00020862,2]
[374028779,1753187450994,-1291.58,0.00020863,2]
[374028781,1753187451003,-1042.81,0.00020863,2]
[374028783,1753187451013,-460.0,0.00020863,2]
[374028785,1753187451022,-460.0,0.00020864,2]
[374028787,1753187451031,-460.0,0.00020865,2]
[374028789,1753187451041,-14098.81,0.00020865,2]
[374028791,1753187451052,-849.21,0.00020865,2]
[374028793,1753187451061,-460.0,0.00020865,2]
[374028795,1753187451073,-460.0,0.00020865,2]
[374028797,1753187451083,-1393.93,0.00020865,2]
[374028799,1753187451092,-250.08867036,0.000209,2]
[374028801,1753187451102,-594.36062447,0.00020939,2]
[374028803,1753187451111,-630.0,0.00021,2]
[374028805,1753187451120,-59133.5156306,0.00021,2]
[374028807,1753187451130,-542.83386234,0.00021,4]
[374028809,1753187451139,-1695.29332585,0.00021072,4]
[374028811,1753187451148,-494.21,0.00021135,2]
[374028813,1753187451157,-533.63,0.00021135,2]
[374028815,1753187451166,-460.0,0.00021135,2]
[374028817,1753187451176,-1368.29,0.00021135,2]
[374028819,1753187451185,-460.0,0.00021135,2]
[374028821,1753187451196,-511.68,0.00021135,2]
[374028823,1753187451209,-460.0,0.00021136,2]
[374028825,1753187451219,-1291.58,0.00021137,2]
[374028828,1753187451234,-1042.81,0.00021137,2]
[374028830,1753187451244,-460.0,0.00021137,2]
[374028831,1753187451254,-460.0,0.00021138,2]
[374028834,1753187451263,-460.0,0.00021139,2]
[374028836,1753187451272,-14098.81,0.00021139,2]